[Event "Titled Tuesday Blitz June 27 Early 2023"]
[White "Bauman_Guy"]
[Black "arenal72"]
[WhiteElo "2639"]
[BlackElo "2350"]
[Result "1-0"]
[Round "2"]
[TimeControl "180+2"]
[Date "2023.06.27"]
[WhiteClock "0:00:53"]
[BlackClock "0:00:01"]
[Board "120"]

1. e4 {[%clk 0:03:00]}  c6 {[%clk 0:02:57]} 2. d4 {[%clk 0:03:00]}  d5 {[%clk 0:02:57]} 3. e5 {[%clk 0:03:01]}  c5 {[%clk 0:02:52]} 4. dxc5 {[%clk 0:03:00]}  e6 {[%clk 0:02:44]} 5. Nf3 {[%clk 0:03:00]}  Bxc5 {[%clk 0:02:42]} 6. a3 {[%clk 0:03:01]}  Nc6 {[%clk 0:02:41]} 7. Bd3 {[%clk 0:03:00]}  a5 {[%clk 0:02:33]} 8. O-O {[%clk 0:03:00]}  Nge7 {[%clk 0:02:33]} 9. Nbd2 {[%clk 0:02:57]}  Qc7 {[%clk 0:02:30]} 10. Re1 {[%clk 0:02:57]}  Ng6 {[%clk 0:02:29]} 11. Nb3 {[%clk 0:02:54]}  Bb6 {[%clk 0:02:28]} 12. Qe2 {[%clk 0:02:51]}  a4 {[%clk 0:02:27]} 13. Nbd2 {[%clk 0:02:51]}  Nf4 {[%clk 0:02:24]} 14. Qf1 {[%clk 0:02:51]}  Nxd3 {[%clk 0:02:24]} 15. Qxd3 {[%clk 0:02:51]}  h6 {[%clk 0:02:21]} 16. c4 {[%clk 0:02:51]}  O-O {[%clk 0:02:09]} 17. cxd5 {[%clk 0:02:51]}  exd5 {[%clk 0:02:10]} 18. Qxd5 {[%clk 0:02:46]}  Rd8 {[%clk 0:02:10]} 19. Qe4 {[%clk 0:02:42]}  Be6 {[%clk 0:02:10]} 20. Nc4 {[%clk 0:02:35]}  Nd4 {[%clk 0:02:04]} 21. Nxb6 {[%clk 0:02:33]}  Qxb6 {[%clk 0:02:01]} 22. Nxd4 {[%clk 0:02:27]}  Rxd4 {[%clk 0:01:57]} 23. Be3 {[%clk 0:02:27]}  Rxe4 {[%clk 0:01:55]} 24. Bxb6 {[%clk 0:02:27]}  Rxe1+ {[%clk 0:01:53]} 25. Rxe1 {[%clk 0:02:27]}  Rc8 {[%clk 0:01:54]} 26. Bd4 {[%clk 0:02:27]}  b5 {[%clk 0:01:44]} 27. Bc3 {[%clk 0:02:27]}  Rd8 {[%clk 0:01:44]} 28. f3 {[%clk 0:02:26]}  Kh7 {[%clk 0:01:43]} 29. Kf2 {[%clk 0:02:26]}  Kg6 {[%clk 0:01:43]} 30. g4 {[%clk 0:02:22]}  h5 {[%clk 0:01:41]} 31. h3 {[%clk 0:02:23]}  Rd3 {[%clk 0:01:36]} 32. Re4 {[%clk 0:01:50]}  hxg4 {[%clk 0:01:31]} 33. hxg4 {[%clk 0:01:49]}  Kg5 {[%clk 0:01:19]} 34. Kg3 {[%clk 0:01:30]}  Bd5 {[%clk 0:01:13]} 35. Rf4 {[%clk 0:01:30]}  g6 {[%clk 0:01:10]} 36. Bb4 {[%clk 0:01:30]}  Kh6 {[%clk 0:00:58]} 37. Rf6 {[%clk 0:01:27]}  Rb3 {[%clk 0:00:52]} 38. Bc3 {[%clk 0:01:20]}  Be6 {[%clk 0:00:46]} 39. Rf4 {[%clk 0:01:18]}  Kg7 {[%clk 0:00:42]} 40. Rd4 {[%clk 0:01:17]}  Kf8 {[%clk 0:00:41]} 41. Kh4 {[%clk 0:01:16]}  Kg7 {[%clk 0:00:39]} 42. Kg5 {[%clk 0:01:16]}  Bc4 {[%clk 0:00:39]} 43. f4 {[%clk 0:01:16]}  Be6 {[%clk 0:00:34]} 44. f5 {[%clk 0:01:15]}  gxf5 {[%clk 0:00:34]} 45. gxf5 {[%clk 0:01:16]}  Bc4 {[%clk 0:00:35]} 46. e6 {[%clk 0:01:08]}  f6+ {[%clk 0:00:35]} 47. Kf4 {[%clk 0:01:07]}  Kf8 {[%clk 0:00:27]} 48. Rd7 {[%clk 0:01:06]}  Be2 {[%clk 0:00:19]} 49. Rf7+ {[%clk 0:01:03]}  Ke8 {[%clk 0:00:18]} 50. Rxf6 {[%clk 0:01:03]}  b4 {[%clk 0:00:17]} 51. Bxb4 {[%clk 0:01:03]}  Rf3+ {[%clk 0:00:17]} 52. Ke4 {[%clk 0:01:03]}  Kd8 {[%clk 0:00:16]} 53. Rf7 {[%clk 0:01:02]}  Rf1 {[%clk 0:00:13]} 54. f6 {[%clk 0:00:59]}  Bf3+ {[%clk 0:00:11]} 55. Ke3 {[%clk 0:00:59]}  Bh5 {[%clk 0:00:09]} 56. Rd7+ {[%clk 0:00:53]}  Kc8 {[%clk 0:00:03]} 57. f7 {[%clk 0:00:53]}  Bxf7 {[%clk 0:00:01]} 58. Rxf7 {[%clk 0:00:53]}  Rxf7 {[%clk 0:00:01]} 59. exf7 {[%clk 0:00:53]} 1-0


[Site "https://www.chess.com"]

[Event "Titled Tuesday Blitz June 27 Early 2023"]
[White "Manukyan, Sargis V."]
[Black "Rodriguez Polo, Mateo"]
[WhiteFideId "13303465"]
[BlackFideId "24509396"]
[WhiteElo "2622"]
[BlackElo "2310"]
[Result "1-0"]
[Round "2"]
[TimeControl "180+2"]
[Date "2023.06.27"]
[WhiteClock "0:00:17"]
[BlackClock "0:00:01"]
[Board "121"]

1. d4 {[%clk 0:03:00]}  e6 {[%clk 0:03:00]} 2. Nf3 {[%clk 0:03:00]}  d5 {[%clk 0:02:55]} 3. c4 {[%clk 0:03:00]}  Nf6 {[%clk 0:02:52]} 4. Nc3 {[%clk 0:03:00]}  Be7 {[%clk 0:02:52]} 5. cxd5 {[%clk 0:03:00]}  exd5 {[%clk 0:02:52]} 6. Bg5 {[%clk 0:02:59]}  c6 {[%clk 0:02:52]} 7. e3 {[%clk 0:03:00]}  Bf5 {[%clk 0:02:49]} 8. Bd3 {[%clk 0:02:54]}  Bxd3 {[%clk 0:02:49]} 9. Qxd3 {[%clk 0:02:55]}  Nbd7 {[%clk 0:02:49]} 10. O-O {[%clk 0:02:51]}  h6 {[%clk 0:02:49]} 11. Bh4 {[%clk 0:02:51]}  O-O {[%clk 0:02:49]} 12. Rab1 {[%clk 0:02:47]}  a5 {[%clk 0:02:40]} 13. a3 {[%clk 0:02:47]}  Ne4 {[%clk 0:02:29]} 14. Nxe4 {[%clk 0:02:36]}  Bxh4 {[%clk 0:02:15]} 15. Nd6 {[%clk 0:02:28]}  Rb8 {[%clk 0:01:46]} 16. b4 {[%clk 0:02:21]}  Be7 {[%clk 0:01:31]} 17. Nf5 {[%clk 0:02:16]}  axb4 {[%clk 0:01:28]} 18. axb4 {[%clk 0:01:59]}  Nb6 {[%clk 0:00:51]} 19. b5 {[%clk 0:01:50]}  Nc4 {[%clk 0:00:50]} 20. bxc6 {[%clk 0:01:34]}  g6 {[%clk 0:00:44]} 21. Nxh6+ {[%clk 0:01:19]}  Kg7 {[%clk 0:00:44]} 22. c7 {[%clk 0:00:59]}  Qxc7 {[%clk 0:00:42]} 23. Ng4 {[%clk 0:01:00]}  Nd6 {[%clk 0:00:30]} 24. Nge5 {[%clk 0:00:51]}  Ne4 {[%clk 0:00:26]} 25. Rfc1 {[%clk 0:00:52]}  Qd6 {[%clk 0:00:25]} 26. h3 {[%clk 0:00:49]}  Bf6 {[%clk 0:00:22]} 27. Rb5 {[%clk 0:00:45]}  Rfc8 {[%clk 0:00:18]} 28. Rxc8 {[%clk 0:00:40]}  Rxc8 {[%clk 0:00:19]} 29. Rxb7 {[%clk 0:00:40]}  Rc1+ {[%clk 0:00:19]} 30. Kh2 {[%clk 0:00:40]}  Bxe5+ {[%clk 0:00:14]} 31. dxe5 {[%clk 0:00:39]}  Qc6 {[%clk 0:00:12]} 32. Rb2 {[%clk 0:00:36]}  Rc3 {[%clk 0:00:07]} 33. Qd4 {[%clk 0:00:36]}  Rc4 {[%clk 0:00:06]} 34. Qd1 {[%clk 0:00:35]}  Rc1 {[%clk 0:00:05]} 35. Qb3 {[%clk 0:00:35]}  Rc3 {[%clk 0:00:05]} 36. Qb8 {[%clk 0:00:31]}  Qc8 {[%clk 0:00:03]} 37. Qb6 {[%clk 0:00:20]}  Rc1 {[%clk 0:00:02]} 38. e6 {[%clk 0:00:20]}  fxe6 {[%clk 0:00:02]} 39. Nd4 {[%clk 0:00:18]}  Rf1 {[%clk 0:00:01]} 40. Nxe6+ {[%clk 0:00:18]}  Kh6 {[%clk 0:00:02]} 41. f3 {[%clk 0:00:18]}  Qc1 {[%clk 0:00:02]} 42. fxe4 {[%clk 0:00:17]}  Rh1+ {[%clk 0:00:03]} 43. Kg3 {[%clk 0:00:17]}  Qe1+ {[%clk 0:00:04]} 44. Kf4 {[%clk 0:00:17]}  Rf1+ {[%clk 0:00:04]} 45. Ke5 {[%clk 0:00:18]}  Qg3+ {[%clk 0:00:03]} 46. Nf4 {[%clk 0:00:18]}  Qxe3 {[%clk 0:00:01]} 47. Qxg6# {[%clk 0:00:17]} 1-0


[Site "https://www.chess.com"]

[Event "Titled Tuesday Blitz June 27 Early 2023"]
[White "Bochnicka, Vladimir"]
[Black "Korobov, Anton"]
[WhiteFideId "14943450"]
[BlackFideId "14105730"]
[WhiteElo "2422"]
[BlackElo "2991"]
[Result "0-1"]
[Round "2"]
[TimeControl "180+2"]
[Date "2023.06.27"]
[WhiteClock "0:00:03"]
[BlackClock "0:01:04"]
[Board "127"]

1. e4 {[%clk 0:02:56]}  c5 {[%clk 0:02:59]} 2. Nf3 {[%clk 0:02:54]}  d6 {[%clk 0:02:59]} 3. d4 {[%clk 0:02:54]}  cxd4 {[%clk 0:03:00]} 4. Nxd4 {[%clk 0:02:53]}  Nf6 {[%clk 0:03:00]} 5. Nc3 {[%clk 0:02:53]}  a6 {[%clk 0:03:00]} 6. f3 {[%clk 0:02:53]}  Qb6 {[%clk 0:03:00]} 7. Bc4 {[%clk 0:02:00]}  Nc6 {[%clk 0:02:40]} 8. Be3 {[%clk 0:01:36]}  Qxb2 {[%clk 0:02:38]} 9. Nde2 {[%clk 0:01:36]}  Qb4 {[%clk 0:02:34]} 10. Bb3 {[%clk 0:01:25]}  e6 {[%clk 0:02:33]} 11. O-O {[%clk 0:01:25]}  Qa5 {[%clk 0:02:29]} 12. Na4 {[%clk 0:01:23]}  Nd7 {[%clk 0:02:29]} 13. f4 {[%clk 0:01:12]}  b5 {[%clk 0:02:27]} 14. Nb2 {[%clk 0:01:09]}  Qc7 {[%clk 0:02:11]} 15. Nd3 {[%clk 0:01:07]}  Be7 {[%clk 0:01:58]} 16. Kh1 {[%clk 0:01:08]}  O-O {[%clk 0:01:56]} 17. Qe1 {[%clk 0:01:07]}  Nc5 {[%clk 0:01:52]} 18. Nxc5 {[%clk 0:01:02]}  dxc5 {[%clk 0:01:53]} 19. c3 {[%clk 0:01:00]}  Bb7 {[%clk 0:01:46]} 20. Bc2 {[%clk 0:01:00]}  Rad8 {[%clk 0:01:43]} 21. e5 {[%clk 0:00:59]}  Na5 {[%clk 0:01:40]} 22. Qg3 {[%clk 0:00:46]}  Nc4 {[%clk 0:01:39]} 23. Bc1 {[%clk 0:00:45]}  f5 {[%clk 0:01:32]} 24. exf6 {[%clk 0:00:36]}  Bxf6 {[%clk 0:01:32]} 25. a4 {[%clk 0:00:33]}  Nd2 {[%clk 0:01:28]} 26. Rg1 {[%clk 0:00:22]}  b4 {[%clk 0:01:24]} 27. Qh3 {[%clk 0:00:22]}  g6 {[%clk 0:01:24]} 28. Qxe6+ {[%clk 0:00:22]}  Kh8 {[%clk 0:01:24]} 29. Ra2 {[%clk 0:00:12]}  Rde8 {[%clk 0:01:10]} 30. Qh3 {[%clk 0:00:09]}  b3 {[%clk 0:01:06]} 31. Bxg6 {[%clk 0:00:09]}  bxa2 {[%clk 0:01:04]} 32. Bxd2 {[%clk 0:00:03]}  Rxe2 {[%clk 0:01:04]} 0-1


[Site "https://www.chess.com"]

[Event "Titled Tuesday Blitz June 27 Early 2023"]
[White "Steinberg, Nitzan"]
[Black "Large, Peter G"]
[WhiteFideId "2801795"]
[BlackFideId "400866"]
[WhiteElo "2886"]
[BlackElo "2419"]
[Result "1-0"]
[Round "2"]
[TimeControl "180+2"]
[Date "2023.06.27"]
[WhiteClock "0:01:18"]
[BlackClock "0:00:00"]
[Board "128"]

1. Nf3 {[%clk 0:03:00]}  Nf6 {[%clk 0:02:58]} 2. g3 {[%clk 0:03:01]}  b6 {[%clk 0:02:56]} 3. Bg2 {[%clk 0:03:02]}  Bb7 {[%clk 0:02:57]} 4. O-O {[%clk 0:03:03]}  e6 {[%clk 0:02:50]} 5. c4 {[%clk 0:03:03]}  c5 {[%clk 0:02:50]} 6. Nc3 {[%clk 0:03:04]}  a6 {[%clk 0:02:50]} 7. d4 {[%clk 0:03:04]}  cxd4 {[%clk 0:02:50]} 8. Nxd4 {[%clk 0:03:04]}  Bxg2 {[%clk 0:02:48]} 9. Kxg2 {[%clk 0:03:05]}  Qc8 {[%clk 0:02:48]} 10. b3 {[%clk 0:03:04]}  Be7 {[%clk 0:02:41]} 11. e4 {[%clk 0:03:02]}  d6 {[%clk 0:02:39]} 12. Bb2 {[%clk 0:02:57]}  Nbd7 {[%clk 0:02:38]} 13. f4 {[%clk 0:02:55]}  Qb7 {[%clk 0:02:38]} 14. Qf3 {[%clk 0:02:55]}  O-O {[%clk 0:02:25]} 15. Rae1 {[%clk 0:02:56]}  Rad8 {[%clk 0:02:13]} 16. g4 {[%clk 0:02:50]}  g6 {[%clk 0:01:52]} 17. g5 {[%clk 0:02:46]}  Nh5 {[%clk 0:01:51]} 18. Nde2 {[%clk 0:02:35]}  b5 {[%clk 0:01:26]} 19. cxb5 {[%clk 0:02:31]}  axb5 {[%clk 0:01:26]} 20. Ng3 {[%clk 0:02:31]}  Nxg3 {[%clk 0:01:03]} 21. hxg3 {[%clk 0:02:32]}  b4 {[%clk 0:01:04]} 22. Na4 {[%clk 0:02:31]}  Rc8 {[%clk 0:01:00]} 23. Re2 {[%clk 0:02:30]}  Nc5 {[%clk 0:00:51]} 24. Nxc5 {[%clk 0:02:28]}  Rxc5 {[%clk 0:00:51]} 25. Qg4 {[%clk 0:02:16]}  Rfc8 {[%clk 0:00:38]} 26. Qh3 {[%clk 0:02:16]}  e5 {[%clk 0:00:22]} 27. fxe5 {[%clk 0:02:14]}  Rc2 {[%clk 0:00:22]} 28. Qg4 {[%clk 0:02:04]}  Qa6 {[%clk 0:00:09]} 29. Ref2 {[%clk 0:01:56]}  Qxa2 {[%clk 0:00:05]} 30. e6 {[%clk 0:01:42]}  Qxb3 {[%clk 0:00:02]} 31. exf7+ {[%clk 0:01:38]}  Kf8 {[%clk 0:00:03]} 32. Ba1 {[%clk 0:01:19]}  Qxf7 {[%clk 0:00:00]} 33. Qxc8+ {[%clk 0:01:18]} 1-0


[Site "https://www.chess.com"]

[Event "Titled Tuesday Blitz June 27 Early 2023"]
[White "Mekhitarian, Krikor Sevag"]
[Black "Srdanovic, Jovana"]
[WhiteFideId "2107660"]
[BlackFideId "954810"]
[WhiteElo "2848"]
[BlackElo "2419"]
[Result "1-0"]
[Round "2"]
[TimeControl "180+2"]
[Date "2023.06.27"]
[WhiteClock "0:00:17"]
[BlackClock "0:00:02"]
[Board "129"]

1. Nf3 {[%clk 0:03:00]}  d5 {[%clk 0:02:56]} 2. c4 {[%clk 0:03:00]}  c6 {[%clk 0:02:55]} 3. d4 {[%clk 0:03:00]}  Nf6 {[%clk 0:02:54]} 4. e3 {[%clk 0:03:00]}  Bf5 {[%clk 0:02:53]} 5. Nc3 {[%clk 0:03:00]}  e6 {[%clk 0:02:53]} 6. Nh4 {[%clk 0:03:00]}  Be4 {[%clk 0:02:52]} 7. f3 {[%clk 0:03:01]}  Bg6 {[%clk 0:02:52]} 8. Qb3 {[%clk 0:03:01]}  Qb6 {[%clk 0:02:49]} 9. Nxg6 {[%clk 0:03:00]}  hxg6 {[%clk 0:02:47]} 10. Bd2 {[%clk 0:03:01]}  Nbd7 {[%clk 0:02:46]} 11. O-O-O {[%clk 0:02:59]}  Rc8 {[%clk 0:02:43]} 12. Kb1 {[%clk 0:02:53]}  Bd6 {[%clk 0:02:30]} 13. h3 {[%clk 0:02:51]}  Nh5 {[%clk 0:02:19]} 14. Bd3 {[%clk 0:02:50]}  Ng3 {[%clk 0:02:07]} 15. Rhe1 {[%clk 0:02:50]}  O-O {[%clk 0:02:04]} 16. Qc2 {[%clk 0:02:49]}  Qc7 {[%clk 0:02:03]} 17. Bc1 {[%clk 0:02:05]}  dxc4 {[%clk 0:01:58]} 18. Bxc4 {[%clk 0:02:06]}  b5 {[%clk 0:01:58]} 19. Bb3 {[%clk 0:02:05]}  a5 {[%clk 0:01:54]} 20. a4 {[%clk 0:02:05]}  b4 {[%clk 0:01:54]} 21. Ne4 {[%clk 0:02:05]}  Nxe4 {[%clk 0:01:53]} 22. fxe4 {[%clk 0:02:03]}  c5 {[%clk 0:01:52]} 23. e5 {[%clk 0:02:02]}  Be7 {[%clk 0:01:46]} 24. d5 {[%clk 0:01:25]}  Nxe5 {[%clk 0:01:25]} 25. Bc4 {[%clk 0:00:52]}  Nxc4 {[%clk 0:01:21]} 26. Qxc4 {[%clk 0:00:53]}  exd5 {[%clk 0:01:19]} 27. Rxd5 {[%clk 0:00:54]}  Qc6 {[%clk 0:01:15]} 28. b3 {[%clk 0:00:54]}  Rcd8 {[%clk 0:01:09]} 29. e4 {[%clk 0:00:54]}  Bh4 {[%clk 0:00:42]} 30. Red1 {[%clk 0:00:53]}  Rc8 {[%clk 0:00:29]} 31. Be3 {[%clk 0:00:51]}  Rfe8 {[%clk 0:00:26]} 32. e5 {[%clk 0:00:51]}  Bg3 {[%clk 0:00:24]} 33. Rxc5 {[%clk 0:00:49]}  Qb7 {[%clk 0:00:21]} 34. e6 {[%clk 0:00:48]}  fxe6 {[%clk 0:00:18]} 35. Rd2 {[%clk 0:00:39]}  Rxc5 {[%clk 0:00:18]} 36. Bxc5 {[%clk 0:00:40]}  Qf7 {[%clk 0:00:12]} 37. Bb6 {[%clk 0:00:36]}  Qf5+ {[%clk 0:00:11]} 38. Qd3 {[%clk 0:00:36]}  Bf4 {[%clk 0:00:11]} 39. Rd1 {[%clk 0:00:33]}  Rf8 {[%clk 0:00:06]} 40. g4 {[%clk 0:00:28]}  Qg5 {[%clk 0:00:05]} 41. Qe4 {[%clk 0:00:26]}  e5 {[%clk 0:00:05]} 42. Bxa5 {[%clk 0:00:26]}  Rc8 {[%clk 0:00:04]} 43. Bxb4 {[%clk 0:00:24]}  Rb8 {[%clk 0:00:03]} 44. Ka2 {[%clk 0:00:22]}  Kh7 {[%clk 0:00:03]} 45. Bc3 {[%clk 0:00:22]}  Qh4 {[%clk 0:00:03]} 46. Qf3 {[%clk 0:00:21]}  Bg5 {[%clk 0:00:02]} 47. Bxe5 {[%clk 0:00:19]}  Re8 {[%clk 0:00:01]} 48. Bb2 {[%clk 0:00:19]}  Re3 {[%clk 0:00:01]} 49. Qf7 {[%clk 0:00:17]}  Rxh3 {[%clk 0:00:02]} 50. Qxg7# {[%clk 0:00:17]} 1-0


[Site "https://www.chess.com"]

[Event "Titled Tuesday Blitz June 27 Early 2023"]
[White "Tsaruk, Maksim"]
[Black "Lima, Kleyton Alcantara"]
[WhiteFideId "13511173"]
[BlackFideId "22718397"]
[WhiteElo "2810"]
[BlackElo "2418"]
[Result "1-0"]
[Round "2"]
[TimeControl "180+2"]
[Date "2023.06.27"]
[WhiteClock "0:00:54"]
[BlackClock "0:00:13"]
[Board "130"]

1. Nf3 {[%clk 0:03:00]}  c5 {[%clk 0:02:50]} 2. g3 {[%clk 0:03:01]}  Nc6 {[%clk 0:02:46]} 3. Bg2 {[%clk 0:03:02]}  e5 {[%clk 0:02:35]} 4. d3 {[%clk 0:03:03]}  g6 {[%clk 0:02:34]} 5. O-O {[%clk 0:03:04]}  Bg7 {[%clk 0:02:35]} 6. Nbd2 {[%clk 0:03:05]}  d6 {[%clk 0:02:36]} 7. e4 {[%clk 0:03:06]}  Nge7 {[%clk 0:02:36]} 8. a4 {[%clk 0:03:07]}  O-O {[%clk 0:02:35]} 9. Nc4 {[%clk 0:03:08]}  h6 {[%clk 0:02:33]} 10. Bd2 {[%clk 0:03:07]}  Be6 {[%clk 0:02:33]} 11. Qc1 {[%clk 0:03:07]}  Kh7 {[%clk 0:02:32]} 12. h4 {[%clk 0:03:02]}  Qd7 {[%clk 0:02:22]} 13. Re1 {[%clk 0:02:49]}  Nd4 {[%clk 0:02:18]} 14. Nxd4 {[%clk 0:02:42]}  cxd4 {[%clk 0:02:18]} 15. Bb4 {[%clk 0:02:42]}  Nc8 {[%clk 0:01:29]} 16. b3 {[%clk 0:02:37]}  f5 {[%clk 0:01:24]} 17. exf5 {[%clk 0:02:21]}  gxf5 {[%clk 0:01:23]} 18. f4 {[%clk 0:02:21]}  Bxc4 {[%clk 0:01:15]} 19. bxc4 {[%clk 0:02:20]}  Rf7 {[%clk 0:01:14]} 20. Bd5 {[%clk 0:02:18]}  Re7 {[%clk 0:01:10]} 21. a5 {[%clk 0:02:18]}  a6 {[%clk 0:01:05]} 22. Qd1 {[%clk 0:02:06]}  Na7 {[%clk 0:01:03]} 23. Qh5 {[%clk 0:02:03]}  Nc6 {[%clk 0:01:03]} 24. Ba3 {[%clk 0:01:51]}  exf4 {[%clk 0:00:55]} 25. Be6 {[%clk 0:01:30]}  Qe8 {[%clk 0:00:32]} 26. Bxf5+ {[%clk 0:01:13]}  Kh8 {[%clk 0:00:32]} 27. Qxe8+ {[%clk 0:01:13]}  Raxe8 {[%clk 0:00:31]} 28. Rxe7 {[%clk 0:01:14]}  Rxe7 {[%clk 0:00:32]} 29. Bxd6 {[%clk 0:01:13]}  Re2 {[%clk 0:00:31]} 30. Bxf4 {[%clk 0:01:09]}  Rxc2 {[%clk 0:00:29]} 31. Re1 {[%clk 0:01:08]}  Kg8 {[%clk 0:00:24]} 32. h5 {[%clk 0:01:07]}  Kf7 {[%clk 0:00:19]} 33. Bg6+ {[%clk 0:01:06]}  Kf6 {[%clk 0:00:19]} 34. Re8 {[%clk 0:00:57]}  Ne7 {[%clk 0:00:17]} 35. Be5+ {[%clk 0:00:52]}  Kxe5 {[%clk 0:00:16]} 36. Rxe7+ {[%clk 0:00:53]}  Kf6 {[%clk 0:00:15]} 37. Rf7+ {[%clk 0:00:53]}  Kg5 {[%clk 0:00:15]} 38. Rxg7 {[%clk 0:00:54]}  Kg4 {[%clk 0:00:13]} 39. Be4+ {[%clk 0:00:53]}  Kh3 {[%clk 0:00:13]} 40. Bf5# {[%clk 0:00:54]} 1-0


[Site "https://www.chess.com"]

[Event "Titled Tuesday Blitz June 27 Early 2023"]
[White "Ohanyan, Emin"]
[Black "Omariev, Maksim"]
[WhiteFideId "13312022"]
[BlackFideId "4193423"]
[WhiteElo "2804"]
[BlackElo "2417"]
[Result "1-0"]
[Round "2"]
[TimeControl "180+2"]
[Date "2023.06.27"]
[WhiteClock "0:00:22"]
[BlackClock "0:00:15"]
[Board "132"]

1. e4 {[%clk 0:02:55]}  c5 {[%clk 0:02:49]} 2. Nf3 {[%clk 0:02:55]}  d6 {[%clk 0:02:45]} 3. d4 {[%clk 0:02:55]}  cxd4 {[%clk 0:02:45]} 4. Nxd4 {[%clk 0:02:56]}  Nf6 {[%clk 0:02:44]} 5. Nc3 {[%clk 0:02:57]}  a6 {[%clk 0:02:44]} 6. Bc4 {[%clk 0:02:57]}  e6 {[%clk 0:02:44]} 7. Bb3 {[%clk 0:02:58]}  b5 {[%clk 0:02:44]} 8. f4 {[%clk 0:02:58]}  b4 {[%clk 0:02:41]} 9. Na4 {[%clk 0:02:56]}  Nxe4 {[%clk 0:02:40]} 10. O-O {[%clk 0:02:57]}  d5 {[%clk 0:02:32]} 11. f5 {[%clk 0:02:43]}  Be7 {[%clk 0:01:52]} 12. fxe6 {[%clk 0:02:14]}  Bxe6 {[%clk 0:01:53]} 13. Nxe6 {[%clk 0:02:07]}  fxe6 {[%clk 0:01:53]} 14. Qh5+ {[%clk 0:01:38]}  Kd7 {[%clk 0:01:24]} 15. Bxd5 {[%clk 0:01:19]}  Nf6 {[%clk 0:01:22]} 16. Rxf6 {[%clk 0:01:08]}  Bxf6 {[%clk 0:01:17]} 17. Bxa8 {[%clk 0:01:04]}  Nc6 {[%clk 0:01:10]} 18. Be3 {[%clk 0:00:46]}  Nd4 {[%clk 0:00:41]} 19. Rd1 {[%clk 0:00:43]}  e5 {[%clk 0:00:40]} 20. Bxd4 {[%clk 0:00:37]}  exd4 {[%clk 0:00:40]} 21. Nc5+ {[%clk 0:00:34]}  Kc8 {[%clk 0:00:25]} 22. Qf7 {[%clk 0:00:24]}  Qc7 {[%clk 0:00:21]} 23. Bb7+ {[%clk 0:00:23]}  Kb8 {[%clk 0:00:15]} 24. Nxa6+ {[%clk 0:00:22]} 1-0


[Site "https://www.chess.com"]

[Event "Titled Tuesday Blitz June 27 Early 2023"]
[White "Lacasa Diaz, Jose Antonio"]
[Black "Rahman, Masruri"]
[WhiteFideId "2203375"]
[BlackFideId "7101163"]
[WhiteElo "2416"]
[BlackElo "2804"]
[Result "1-0"]
[Round "2"]
[TimeControl "180+2"]
[Date "2023.06.27"]
[WhiteClock "0:00:37"]
[BlackClock "0:00:01"]
[Board "133"]

1. e4 {[%clk 0:03:00]}  e6 {[%clk 0:02:58]} 2. d4 {[%clk 0:03:00]}  d5 {[%clk 0:02:59]} 3. e5 {[%clk 0:03:01]}  c5 {[%clk 0:02:59]} 4. c3 {[%clk 0:03:01]}  Nc6 {[%clk 0:02:58]} 5. Nf3 {[%clk 0:03:02]}  Qb6 {[%clk 0:02:58]} 6. a3 {[%clk 0:03:02]}  Nh6 {[%clk 0:02:58]} 7. b4 {[%clk 0:03:01]}  cxd4 {[%clk 0:02:58]} 8. cxd4 {[%clk 0:03:02]}  Nf5 {[%clk 0:02:59]} 9. Be3 {[%clk 0:03:02]}  Nxe3 {[%clk 0:02:58]} 10. fxe3 {[%clk 0:03:03]}  g6 {[%clk 0:02:59]} 11. Bd3 {[%clk 0:02:58]}  Bh6 {[%clk 0:02:58]} 12. Qe2 {[%clk 0:02:58]}  O-O {[%clk 0:02:58]} 13. O-O {[%clk 0:02:58]}  f6 {[%clk 0:02:58]} 14. exf6 {[%clk 0:02:57]}  Rxf6 {[%clk 0:02:58]} 15. Nc3 {[%clk 0:02:56]}  Qd8 {[%clk 0:02:56]} 16. b5 {[%clk 0:02:52]}  Ne7 {[%clk 0:02:50]} 17. Ne5 {[%clk 0:02:51]}  Bg7 {[%clk 0:02:50]} 18. a4 {[%clk 0:02:17]}  Bd7 {[%clk 0:02:41]} 19. e4 {[%clk 0:02:04]}  Rxf1+ {[%clk 0:02:12]} 20. Rxf1 {[%clk 0:02:02]}  Bxe5 {[%clk 0:01:43]} 21. dxe5 {[%clk 0:02:03]}  Qb6+ {[%clk 0:01:26]} 22. Kh1 {[%clk 0:02:01]}  Rf8 {[%clk 0:01:11]} 23. Rxf8+ {[%clk 0:01:56]}  Kxf8 {[%clk 0:01:12]} 24. Qf3+ {[%clk 0:01:46]}  Kg8 {[%clk 0:01:08]} 25. exd5 {[%clk 0:01:44]}  Qd4 {[%clk 0:01:03]} 26. d6 {[%clk 0:01:17]}  Nf5 {[%clk 0:00:08]} 27. Bxf5 {[%clk 0:01:17]}  gxf5 {[%clk 0:00:09]} 28. Qg3+ {[%clk 0:01:07]}  Kf7 {[%clk 0:00:09]} 29. h3 {[%clk 0:00:57]}  f4 {[%clk 0:00:08]} 30. Qg5 {[%clk 0:00:54]}  Qxc3 {[%clk 0:00:05]} 31. Qf6+ {[%clk 0:00:48]}  Kg8 {[%clk 0:00:03]} 32. Qd8+ {[%clk 0:00:47]}  Kg7 {[%clk 0:00:03]} 33. Qxd7+ {[%clk 0:00:47]}  Kh8 {[%clk 0:00:03]} 34. Qe8+ {[%clk 0:00:42]}  Kg7 {[%clk 0:00:03]} 35. Qe7+ {[%clk 0:00:42]}  Kg8 {[%clk 0:00:02]} 36. Qxe6+ {[%clk 0:00:41]}  Kh8 {[%clk 0:00:01]} 37. Qf6+ {[%clk 0:00:37]} 1-0


[Site "https://www.chess.com"]